[Event "Titled Tuesday Blitz November 14 Early 2023"]
[White "Marcziter, Dmitrii"]
[Black "Josgar05"]
[WhiteFideId "13900765"]
[WhiteElo "2401"]
[BlackElo "2309"]
[Result "1/2-1/2"]
[Round "10"]
[TimeControl "180+1"]
[Date "2023.11.14"]
[WhiteClock "0:00:12"]
[BlackClock "0:00:21"]
[Board "124"]

1. d4 {[%clk 0:03:00]}  g6 {[%clk 0:03:00]} 2. c4 {[%clk 0:03:00]}  Bg7 {[%clk 0:03:00]} 3. Nf3 {[%clk 0:02:58]}  d6 {[%clk 0:02:59]} 4. Nc3 {[%clk 0:02:54]}  e5 {[%clk 0:02:59]} 5. Bg5 {[%clk 0:02:53]}  Qd7 {[%clk 0:02:50]} 6. dxe5 {[%clk 0:02:46]}  dxe5 {[%clk 0:02:47]} 7. Qc2 {[%clk 0:02:43]}  c6 {[%clk 0:02:27]} 8. Rd1 {[%clk 0:02:40]}  Qc7 {[%clk 0:02:26]} 9. Ne4 {[%clk 0:02:38]}  Bf5 {[%clk 0:02:12]} 10. Rd8+ {[%clk 0:02:35]}  Qxd8 {[%clk 0:02:08]} 11. Bxd8 {[%clk 0:02:35]}  Kxd8 {[%clk 0:02:08]} 12. Nh4 {[%clk 0:02:34]}  Bxe4 {[%clk 0:02:06]} 13. Qxe4 {[%clk 0:02:34]}  Nd7 {[%clk 0:02:07]} 14. e3 {[%clk 0:02:28]}  Ngf6 {[%clk 0:02:07]} 15. Qc2 {[%clk 0:02:24]}  Kc7 {[%clk 0:02:07]} 16. Nf3 {[%clk 0:02:23]}  Rad8 {[%clk 0:02:07]} 17. Be2 {[%clk 0:02:23]}  Rhe8 {[%clk 0:02:07]} 18. O-O {[%clk 0:02:23]}  Nc5 {[%clk 0:02:07]} 19. Ng5 {[%clk 0:02:14]}  Rd7 {[%clk 0:01:57]} 20. b4 {[%clk 0:02:13]}  Ne6 {[%clk 0:01:58]} 21. Nxe6+ {[%clk 0:02:10]}  Rxe6 {[%clk 0:01:58]} 22. b5 {[%clk 0:02:07]}  Red6 {[%clk 0:01:58]} 23. Bf3 {[%clk 0:02:05]}  c5 {[%clk 0:01:57]} 24. b6+ {[%clk 0:01:59]}  axb6 {[%clk 0:01:55]} 25. Qa4 {[%clk 0:01:57]}  e4 {[%clk 0:01:54]} 26. Bd1 {[%clk 0:01:46]}  Ne8 {[%clk 0:01:51]} 27. Bc2 {[%clk 0:01:43]}  f5 {[%clk 0:01:50]} 28. f3 {[%clk 0:01:41]}  exf3 {[%clk 0:01:49]} 29. Rxf3 {[%clk 0:01:39]}  Nf6 {[%clk 0:01:48]} 30. h3 {[%clk 0:01:37]}  Rd2 {[%clk 0:01:48]} 31. Rf2 {[%clk 0:01:19]}  R2d6 {[%clk 0:01:43]} 32. Qa8 {[%clk 0:01:13]}  Rd8 {[%clk 0:01:42]} 33. Qa3 {[%clk 0:01:13]}  Bh6 {[%clk 0:01:42]} 34. e4 {[%clk 0:01:07]}  fxe4 {[%clk 0:01:40]} 35. Rxf6 {[%clk 0:00:52]}  Rxf6 {[%clk 0:01:39]} 36. Bxe4 {[%clk 0:00:52]}  Rd1+ {[%clk 0:01:34]} 37. Kh2 {[%clk 0:00:51]}  Bf4+ {[%clk 0:01:34]} 38. g3 {[%clk 0:00:50]}  Rd2+ {[%clk 0:01:26]} 39. Bg2 {[%clk 0:00:48]}  Bd6 {[%clk 0:01:00]} 40. Qa8 {[%clk 0:00:45]}  Rff2 {[%clk 0:00:58]} 41. Qxb7+ {[%clk 0:00:44]}  Kd8 {[%clk 0:00:58]} 42. Qxb6+ {[%clk 0:00:42]}  Bc7 {[%clk 0:00:54]} 43. Qxc5 {[%clk 0:00:32]}  Rxg2+ {[%clk 0:00:54]} 44. Kh1 {[%clk 0:00:32]}  Rge2 {[%clk 0:00:24]} 45. Qf8+ {[%clk 0:00:30]}  Kd7 {[%clk 0:00:25]} 46. Qf7+ {[%clk 0:00:23]}  Kc6 {[%clk 0:00:22]} 47. Qf1 {[%clk 0:00:17]}  Bxg3 {[%clk 0:00:18]} 48. Qf3+ {[%clk 0:00:16]}  Kc5 {[%clk 0:00:17]} 49. Qa3+ {[%clk 0:00:13]}  Kd4 {[%clk 0:00:17]} 50. Qa7+ {[%clk 0:00:11]}  Kd3 {[%clk 0:00:16]} 51. Qa3+ {[%clk 0:00:10]}  Kc2 {[%clk 0:00:15]} 52. Qb3+ {[%clk 0:00:10]}  Kc1 {[%clk 0:00:15]} 53. Qc3+ {[%clk 0:00:08]}  Kb1 {[%clk 0:00:15]} 54. Qb3+ {[%clk 0:00:06]}  Ka1 {[%clk 0:00:15]} 55. Qc3+ {[%clk 0:00:06]}  Rb2 {[%clk 0:00:15]} 56. Kg1 {[%clk 0:00:05]}  Be5 {[%clk 0:00:14]} 57. Qc1+ {[%clk 0:00:04]}  Rb1 {[%clk 0:00:14]} 58. Qxb1+ {[%clk 0:00:04]}  Kxb1 {[%clk 0:00:15]} 59. Kf1 {[%clk 0:00:04]}  Rxa2 {[%clk 0:00:15]} 60. c5 {[%clk 0:00:04]}  Rc2 {[%clk 0:00:16]} 61. h4 {[%clk 0:00:05]}  Bc7 {[%clk 0:00:16]} 62. h5 {[%clk 0:00:06]}  gxh5 {[%clk 0:00:16]} 63. c6 {[%clk 0:00:06]}  Kb2 {[%clk 0:00:17]} 64. Ke1 {[%clk 0:00:06]}  Kb3 {[%clk 0:00:18]} 65. Kd1 {[%clk 0:00:06]}  Kb4 {[%clk 0:00:19]} 66. Kxc2 {[%clk 0:00:04]}  Kc4 {[%clk 0:00:18]} 67. Kd2 {[%clk 0:00:04]}  Kd4 {[%clk 0:00:19]} 68. Ke2 {[%clk 0:00:05]}  Ke4 {[%clk 0:00:20]} 69. Kf2 {[%clk 0:00:05]}  Kf4 {[%clk 0:00:20]} 70. Kg2 {[%clk 0:00:06]}  Kg4 {[%clk 0:00:21]} 71. Kh1 {[%clk 0:00:07]}  Kh3 {[%clk 0:00:21]} 72. Kg1 {[%clk 0:00:08]}  h4 {[%clk 0:00:22]} 73. Kh1 {[%clk 0:00:08]}  h6 {[%clk 0:00:22]} 74. Kg1 {[%clk 0:00:09]}  Kg3 {[%clk 0:00:22]} 75. Kh1 {[%clk 0:00:10]}  h3 {[%clk 0:00:23]} 76. Kg1 {[%clk 0:00:10]}  Bb6+ {[%clk 0:00:22]} 77. Kh1 {[%clk 0:00:11]}  Bc7 {[%clk 0:00:20]} 78. Kg1 {[%clk 0:00:11]}  Kh4 {[%clk 0:00:21]} 79. Kh1 {[%clk 0:00:11]}  Kg4 {[%clk 0:00:22]} 80. Kg1 {[%clk 0:00:11]}  h2+ {[%clk 0:00:22]} 81. Kh1 {[%clk 0:00:12]}  Bd6 {[%clk 0:00:20]} 82. Kg2 {[%clk 0:00:12]}  Kh4 {[%clk 0:00:20]} 83. Kh1 {[%clk 0:00:12]}  Kh3 {[%clk 0:00:20]} 84. c7 {[%clk 0:00:12]}  Bxc7 {[%clk 0:00:21]} 1/2-1/2


[Site "https://www.chess.com"]

[Event "Titled Tuesday Blitz November 14 Early 2023"]
[White "Dmitrenko, Viktor"]
[Black "Kuchava, Ana"]
[WhiteFideId "14110270"]
[BlackFideId "13605348"]
[WhiteElo "2361"]
[BlackElo "2243"]
[Result "1-0"]
[Round "10"]
[TimeControl "180+1"]
[Date "2023.11.14"]
[WhiteClock "0:00:07"]
[BlackClock "0:00:08"]
[Board "129"]

1. e4 {[%clk 0:02:57]}  c5 {[%clk 0:02:57]} 2. Nf3 {[%clk 0:02:56]}  d6 {[%clk 0:02:56]} 3. Bb5+ {[%clk 0:02:53]}  Bd7 {[%clk 0:02:56]} 4. Bxd7+ {[%clk 0:02:53]}  Qxd7 {[%clk 0:02:56]} 5. O-O {[%clk 0:02:53]}  Nc6 {[%clk 0:02:52]} 6. d3 {[%clk 0:02:52]}  Nf6 {[%clk 0:02:47]} 7. Bg5 {[%clk 0:02:51]}  g6 {[%clk 0:02:42]} 8. Bxf6 {[%clk 0:02:48]}  exf6 {[%clk 0:02:43]} 9. Nc3 {[%clk 0:02:48]}  Bg7 {[%clk 0:02:42]} 10. Nd5 {[%clk 0:02:47]}  O-O {[%clk 0:02:41]} 11. c3 {[%clk 0:02:46]}  f5 {[%clk 0:02:41]} 12. Re1 {[%clk 0:02:36]}  fxe4 {[%clk 0:02:35]} 13. dxe4 {[%clk 0:02:33]}  Rfe8 {[%clk 0:02:28]} 14. h3 {[%clk 0:02:08]}  Rad8 {[%clk 0:02:21]} 15. Qd2 {[%clk 0:02:04]}  b5 {[%clk 0:01:48]} 16. a4 {[%clk 0:01:05]}  a6 {[%clk 0:01:39]} 17. axb5 {[%clk 0:00:54]}  axb5 {[%clk 0:01:40]} 18. Qd3 {[%clk 0:00:43]}  c4 {[%clk 0:01:26]} 19. Qc2 {[%clk 0:00:32]}  Qb7 {[%clk 0:01:22]} 20. b3 {[%clk 0:00:13]}  cxb3 {[%clk 0:01:10]} 21. Qxb3 {[%clk 0:00:14]}  b4 {[%clk 0:01:11]} 22. Rab1 {[%clk 0:00:13]}  Rb8 {[%clk 0:01:01]} 23. cxb4 {[%clk 0:00:13]}  Nd4 {[%clk 0:00:53]} 24. Nxd4 {[%clk 0:00:12]}  Bxd4 {[%clk 0:00:54]} 25. b5 {[%clk 0:00:13]}  Bg7 {[%clk 0:00:40]} 26. b6 {[%clk 0:00:10]}  Kh8 {[%clk 0:00:39]} 27. Rec1 {[%clk 0:00:10]}  Rec8 {[%clk 0:00:38]} 28. Rc7 {[%clk 0:00:07]}  Qa6 {[%clk 0:00:28]} 29. Rxc8+ {[%clk 0:00:05]}  Qxc8 {[%clk 0:00:23]} 30. b7 {[%clk 0:00:05]}  Qc5 {[%clk 0:00:15]} 31. Qb6 {[%clk 0:00:05]}  Bd4 {[%clk 0:00:14]} 32. Qc7 {[%clk 0:00:03]}  Bxf2+ {[%clk 0:00:12]} 33. Kh1 {[%clk 0:00:03]}  Qxc7 {[%clk 0:00:11]} 34. Nxc7 {[%clk 0:00:03]}  Bg3 {[%clk 0:00:08]} 35. Na6 {[%clk 0:00:03]}  Rxb7 {[%clk 0:00:04]} 36. Rxb7 {[%clk 0:00:03]}  Kg7 {[%clk 0:00:05]} 37. Rd7 {[%clk 0:00:03]}  h5 {[%clk 0:00:06]} 38. Nb8 {[%clk 0:00:03]}  Be5 {[%clk 0:00:06]} 39. Nc6 {[%clk 0:00:03]}  Bf4 {[%clk 0:00:06]} 40. Nd4 {[%clk 0:00:03]}  Kf6 {[%clk 0:00:07]} 41. Ra7 {[%clk 0:00:03]}  Be5 {[%clk 0:00:08]} 42. Ra4 {[%clk 0:00:03]}  Kg5 {[%clk 0:00:08]} 43. Kg1 {[%clk 0:00:03]}  Kf6 {[%clk 0:00:08]} 44. Kf2 {[%clk 0:00:04]}  Bf4 {[%clk 0:00:09]} 45. Kf3 {[%clk 0:00:04]}  Be5 {[%clk 0:00:09]} 46. Ne2 {[%clk 0:00:04]}  g5 {[%clk 0:00:10]} 47. g4 {[%clk 0:00:05]}  hxg4+ {[%clk 0:00:10]} 48. hxg4 {[%clk 0:00:05]}  Kg6 {[%clk 0:00:11]} 49. Ra7 {[%clk 0:00:06]}  Kf6 {[%clk 0:00:10]} 50. Ra4 {[%clk 0:00:06]}  Kg6 {[%clk 0:00:10]} 51. Nd4 {[%clk 0:00:06]}  Kf6 {[%clk 0:00:10]} 52. Nf5 {[%clk 0:00:07]}  Ke6 {[%clk 0:00:10]} 53. Ra6 {[%clk 0:00:07]}  Bf4 {[%clk 0:00:10]} 54. Ke2 {[%clk 0:00:06]}  Be5 {[%clk 0:00:11]} 55. Kd3 {[%clk 0:00:06]}  Bf4 {[%clk 0:00:12]} 56. Ra7 {[%clk 0:00:04]}  Be5 {[%clk 0:00:13]} 57. Re7+ {[%clk 0:00:04]}  Kf6 {[%clk 0:00:13]} 58. Re8 {[%clk 0:00:04]}  Bf4 {[%clk 0:00:14]} 59. Kc4 {[%clk 0:00:04]}  Be5 {[%clk 0:00:14]} 60. Kd5 {[%clk 0:00:05]}  Bf4 {[%clk 0:00:15]} 61. Nxd6 {[%clk 0:00:05]}  Kg7 {[%clk 0:00:13]} 62. e5 {[%clk 0:00:05]}  Be3 {[%clk 0:00:13]} 63. Re7 {[%clk 0:00:06]}  Kg6 {[%clk 0:00:12]} 64. Rxf7 {[%clk 0:00:06]}  Bf4 {[%clk 0:00:13]} 65. Rf5 {[%clk 0:00:06]}  Bg3 {[%clk 0:00:08]} 66. e6 {[%clk 0:00:07]} 1-0


[Site "https://www.chess.com"]

[Event "Titled Tuesday Blitz November 14 Early 2023"]
[White "thisjuan"]
[Black "Jakubowska, Anna"]
[BlackFideId "1121952"]
[WhiteElo "2199"]
[BlackElo "2342"]
[Result "0-1"]
[Round "10"]
[TimeControl "180+1"]
[Date "2023.11.14"]
[WhiteClock "0:00:11"]
[BlackClock "0:01:26"]
[Board "131"]

1. c4 {[%clk 0:02:54]}  f5 {[%clk 0:02:57]} 2. g3 {[%clk 0:02:54]}  Nf6 {[%clk 0:02:57]} 3. Bg2 {[%clk 0:02:55]}  g6 {[%clk 0:02:58]} 4. Nc3 {[%clk 0:02:55]}  Bg7 {[%clk 0:02:58]} 5. d3 {[%clk 0:02:54]}  O-O {[%clk 0:02:58]} 6. e4 {[%clk 0:02:54]}  d6 {[%clk 0:02:57]} 7. Nge2 {[%clk 0:02:55]}  e5 {[%clk 0:02:56]} 8. O-O {[%clk 0:02:55]}  f4 {[%clk 0:02:55]} 9. gxf4 {[%clk 0:02:53]}  exf4 {[%clk 0:02:50]} 10. Bxf4 {[%clk 0:02:49]}  Nc6 {[%clk 0:02:49]} 11. Bg3 {[%clk 0:02:43]}  Bg4 {[%clk 0:02:41]} 12. f3 {[%clk 0:02:42]}  Be6 {[%clk 0:02:40]} 13. Qd2 {[%clk 0:02:29]}  Qd7 {[%clk 0:02:37]} 14. b3 {[%clk 0:02:16]}  Nh5 {[%clk 0:02:31]} 15. d4 {[%clk 0:02:15]}  Bh3 {[%clk 0:02:27]} 16. Rad1 {[%clk 0:02:04]}  Rf7 {[%clk 0:02:12]} 17. Nd5 {[%clk 0:02:00]}  Bxg2 {[%clk 0:02:10]} 18. Kxg2 {[%clk 0:01:57]}  Raf8 {[%clk 0:02:10]} 19. Qg5 {[%clk 0:01:20]}  Nd8 {[%clk 0:02:00]} 20. Qg4 {[%clk 0:01:09]}  Qe8 {[%clk 0:01:52]} 21. Nef4 {[%clk 0:00:51]}  c6 {[%clk 0:01:47]} 22. Ne3 {[%clk 0:00:27]}  Nxf4+ {[%clk 0:01:44]} 23. Bxf4 {[%clk 0:00:27]}  Rxf4 {[%clk 0:01:43]} 24. Qg3 {[%clk 0:00:28]}  Ne6 {[%clk 0:01:36]} 25. Ng4 {[%clk 0:00:25]}  Nxd4 {[%clk 0:01:31]} 26. e5 {[%clk 0:00:11]}  dxe5 {[%clk 0:01:26]} 0-1


[Site "https://www.chess.com"]

[Event "Titled Tuesday Blitz November 14 Early 2023"]
[White "Dahlgren, James Allen"]
[Black "KorolDimitriy75"]
[WhiteFideId "22256873"]
[WhiteElo "2157"]
[BlackElo "2337"]
[Result "0-1"]
[Round "10"]
[TimeControl "180+1"]
[Date "2023.11.14"]
[WhiteClock "0:01:39"]
[BlackClock "0:01:45"]
[Board "133"]

1. e4 {[%clk 0:02:59]}  c5 {[%clk 0:03:00]} 2. Nc3 {[%clk 0:02:59]}  g6 {[%clk 0:03:00]} 3. f4 {[%clk 0:03:00]}  Bg7 {[%clk 0:03:00]} 4. Nf3 {[%clk 0:03:01]}  Nc6 {[%clk 0:03:01]} 5. Bc4 {[%clk 0:03:00]}  e6 {[%clk 0:03:00]} 6. d3 {[%clk 0:03:00]}  Nge7 {[%clk 0:03:01]} 7. Bb3 {[%clk 0:02:57]}  Nd4 {[%clk 0:03:00]} 8. Nxd4 {[%clk 0:02:56]}  cxd4 {[%clk 0:03:01]} 9. Ne2 {[%clk 0:02:56]}  d5 {[%clk 0:03:00]} 10. O-O {[%clk 0:02:49]}  dxe4 {[%clk 0:02:50]} 11. dxe4 {[%clk 0:02:50]}  O-O {[%clk 0:02:51]} 12. Kh1 {[%clk 0:02:40]}  b6 {[%clk 0:02:43]} 13. e5 {[%clk 0:02:19]}  Ba6 {[%clk 0:02:37]} 14. c4 {[%clk 0:02:06]}  dxc3 {[%clk 0:02:36]} 15. bxc3 {[%clk 0:02:07]}  Qxd1 {[%clk 0:02:30]} 16. Bxd1 {[%clk 0:02:08]}  Rfd8 {[%clk 0:02:29]} 17. Re1 {[%clk 0:01:58]}  Rxd1 {[%clk 0:02:20]} 18. Rxd1 {[%clk 0:01:58]}  Bxe2 {[%clk 0:02:20]} 19. Rd7 {[%clk 0:01:58]}  Nd5 {[%clk 0:02:19]} 20. Ba3 {[%clk 0:01:56]}  Bb5 {[%clk 0:01:47]} 21. Rc1 {[%clk 0:01:39]}  Bxd7 {[%clk 0:01:45]} 0-1


[Site "https://www.chess.com"]

[Event "Titled Tuesday Blitz November 14 Early 2023"]
[White "Babayeva, Nasrin"]
[Black "Kornyukov, Alexey"]
[WhiteFideId "13416626"]
[BlackFideId "4150457"]
[WhiteElo "1851"]
[BlackElo "2320"]
[Result "0-1"]
[Round "10"]
[TimeControl "180+1"]
[Date "2023.11.14"]
[WhiteClock "0:00:00"]
[BlackClock "0:01:04"]
[Board "137"]

1. d4 {[%clk 0:02:58]}  Nf6 {[%clk 0:02:55]} 2. c4 {[%clk 0:02:53]}  e6 {[%clk 0:02:54]} 3. e3 {[%clk 0:02:40]}  d5 {[%clk 0:02:54]} 4. Nf3 {[%clk 0:02:40]}  Bb4+ {[%clk 0:02:52]} 5. Nbd2 {[%clk 0:02:37]}  O-O {[%clk 0:02:50]} 6. a3 {[%clk 0:02:37]}  Bxd2+ {[%clk 0:02:49]} 7. Bxd2 {[%clk 0:02:36]}  c6 {[%clk 0:02:41]} 8. b4 {[%clk 0:02:00]}  dxc4 {[%clk 0:02:38]} 9. Bxc4 {[%clk 0:02:00]}  b5 {[%clk 0:02:38]} 10. Bd3 {[%clk 0:01:59]}  Nbd7 {[%clk 0:02:33]} 11. Qc2 {[%clk 0:01:41]}  Bb7 {[%clk 0:02:29]} 12. O-O {[%clk 0:01:39]}  Nb6 {[%clk 0:02:29]} 13. Ne5 {[%clk 0:01:34]}  Rc8 {[%clk 0:02:25]} 14. Be2 {[%clk 0:01:17]}  Nfd7 {[%clk 0:02:16]} 15. Nd3 {[%clk 0:01:11]}  Nc4 {[%clk 0:02:12]} 16. Bc3 {[%clk 0:01:07]}  Ndb6 {[%clk 0:02:09]} 17. Nc5 {[%clk 0:00:55]}  Qe7 {[%clk 0:02:09]} 18. Bf3 {[%clk 0:00:46]}  Ba8 {[%clk 0:02:06]} 19. a4 {[%clk 0:00:33]}  Nxa4 {[%clk 0:02:00]} 20. Nxa4 {[%clk 0:00:34]}  bxa4 {[%clk 0:02:00]} 21. Rxa4 {[%clk 0:00:31]}  Nb6 {[%clk 0:01:59]} 22. Ra2 {[%clk 0:00:27]}  Nd5 {[%clk 0:01:58]} 23. Qb3 {[%clk 0:00:19]}  Rc7 {[%clk 0:01:53]} 24. Rfa1 {[%clk 0:00:17]}  Rb8 {[%clk 0:01:52]} 25. Bxd5 {[%clk 0:00:14]}  cxd5 {[%clk 0:01:52]} 26. b5 {[%clk 0:00:13]}  Rcb7 {[%clk 0:01:45]} 27. Ra5 {[%clk 0:00:11]}  h6 {[%clk 0:01:38]} 28. Bb4 {[%clk 0:00:09]}  Qc7 {[%clk 0:01:37]} 29. Bc5 {[%clk 0:00:09]}  Qd7 {[%clk 0:01:18]} 30. Rxa7 {[%clk 0:00:08]}  Rxb5 {[%clk 0:01:04]} 31. Rxd7 {[%clk 0:00:00]}  Rxb3 {[%clk 0:01:04]} 0-1


[Site "https://www.chess.com"]

[Event "Titled Tuesday Blitz November 14 Early 2023"]
[White "Balla, Tamas-Kristof"]
[Black "vovasev"]
[WhiteFideId "1208497"]
[WhiteElo "2388"]
[BlackElo "2120"]
[Result "1-0"]
[Round "10"]
[TimeControl "180+1"]
[Date "2023.11.14"]
[WhiteClock "0:02:46"]
[BlackClock "0:02:29"]
[Board "138"]

1. e4 {[%clk 0:03:00]}  c5 {[%clk 0:02:57]} 2. c3 {[%clk 0:03:00]}  d6 {[%clk 0:02:57]} 3. d4 {[%clk 0:03:01]}  Nf6 {[%clk 0:02:51]} 4. Bd3 {[%clk 0:02:58]}  e6 {[%clk 0:02:49]} 5. Nf3 {[%clk 0:02:56]}  Be7 {[%clk 0:02:47]} 6. O-O {[%clk 0:02:56]}  O-O {[%clk 0:02:47]} 7. Bg5 {[%clk 0:02:52]}  cxd4 {[%clk 0:02:45]} 8. cxd4 {[%clk 0:02:52]}  Nc6 {[%clk 0:02:42]} 9. Nc3 {[%clk 0:02:50]}  h6 {[%clk 0:02:41]} 10. Bh4 {[%clk 0:02:49]}  Nh5 {[%clk 0:02:39]} 11. Bxe7 {[%clk 0:02:47]}  Qxe7 {[%clk 0:02:39]} 12. d5 {[%clk 0:02:46]}  Ne5 {[%clk 0:02:38]} 13. Nxe5 {[%clk 0:02:46]}  dxe5 {[%clk 0:02:33]} 14. Qxh5 {[%clk 0:02:47]}  exd5 {[%clk 0:02:29]} 15. exd5 {[%clk 0:02:46]} 1-0


[Site "https://www.chess.com"]

[Event "Titled Tuesday Blitz November 14 Early 2023"]
[White "DonCiao"]
[Black "campochess"]
[WhiteElo "2125"]
[BlackElo "2184"]
[Result "0-1"]
[Round "10"]
[TimeControl "180+1"]
[Date "2023.11.14"]
[WhiteClock "0:00:00"]
[BlackClock "0:02:10"]
[Board "140"]

1. c4 {[%clk 0:02:51]}  e6 {[%clk 0:02:59]} 2. g3 {[%clk 0:02:51]}  d5 {[%clk 0:02:59]} 3. Bg2 {[%clk 0:02:51]}  c6 {[%clk 0:02:59]} 4. Nf3 {[%clk 0:02:50]}  Nf6 {[%clk 0:02:59]} 5. b3 {[%clk 0:02:50]}  Nbd7 {[%clk 0:02:59]} 6. O-O {[%clk 0:02:49]}  Be7 {[%clk 0:02:59]} 7. Bb2 {[%clk 0:02:49]}  O-O {[%clk 0:02:59]} 8. d3 {[%clk 0:02:49]}  b5 {[%clk 0:02:58]} 9. Qc2 {[%clk 0:02:48]}  bxc4 {[%clk 0:02:57]} 10. bxc4 {[%clk 0:02:47]}  Rb8 {[%clk 0:02:57]} 11. Nbd2 {[%clk 0:02:42]}  Ng4 {[%clk 0:02:56]} 12. h3 {[%clk 0:02:39]}  Bf6 {[%clk 0:02:49]} 13. Nd4 {[%clk 0:02:15]}  Rxb2 {[%clk 0:02:37]} 14. Qxb2 {[%clk 0:02:13]}  c5 {[%clk 0:02:37]} 15. hxg4 {[%clk 0:01:50]}  Bxd4 {[%clk 0:02:34]} 16. Qb3 {[%clk 0:01:37]}  Bxa1 {[%clk 0:02:34]} 17. Rxa1 {[%clk 0:01:35]}  Nb6 {[%clk 0:02:33]} 18. cxd5 {[%clk 0:01:33]}  exd5 {[%clk 0:02:33]} 19. Rc1 {[%clk 0:00:54]}  Bxg4 {[%clk 0:02:26]} 20. f3 {[%clk 0:00:32]}  c4 {[%clk 0:02:23]} 21. dxc4 {[%clk 0:00:28]}  dxc4 {[%clk 0:02:23]} 22. Qc3 {[%clk 0:00:20]}  Be6 {[%clk 0:02:21]} 23. e4 {[%clk 0:00:12]}  Na4 {[%clk 0:02:16]} 24. Qb4 {[%clk 0:00:08]}  Qd4+ {[%clk 0:02:14]} 25. Kh2 {[%clk 0:00:00]}  Nb6 {[%clk 0:02:10]} 0-1


[Site "https://www.chess.com"]

[Event "Titled Tuesday Blitz November 14 Early 2023"]
[White "Novikova, Anna"]
[Black "Politov, Pavel Y."]
[WhiteFideId "4146794"]
[BlackFideId "24110515"]
[WhiteElo "2165"]
[BlackElo "2098"]
[Result "0-1"]
[Round "10"]
[TimeControl "180+1"]
[Date "2023.11.14"]
[WhiteClock "0:00:05"]
[BlackClock "0:01:12"]
[Board "142"]

1. e4 {[%clk 0:02:57]}  c5 {[%clk 0:02:59]} 2. Nf3 {[%clk 0:02:55]}  d6 {[%clk 0:02:59]} 3. d4 {[%clk 0:02:50]}  cxd4 {[%clk 0:03:00]} 4. Nxd4 {[%clk 0:02:50]}  Nf6 {[%clk 0:02:59]} 5. Nc3 {[%clk 0:02:50]}  a6 {[%clk 0:02:59]} 6. Bg5 {[%clk 0:02:45]}  e6 {[%clk 0:02:56]} 7. f4 {[%clk 0:02:43]}  h6 {[%clk 0:02:56]} 8. Bh4 {[%clk 0:02:16]}  Qb6 {[%clk 0:02:55]} 9. Qd2 {[%clk 0:02:03]}  Qxb2 {[%clk 0:02:53]} 10. Rb1 {[%clk 0:01:59]}  Qa3 {[%clk 0:02:52]} 11. Rb3 {[%clk 0:01:12]}  Qa5 {[%clk 0:02:39]} 12. Bxf6 {[%clk 0:01:09]}  gxf6 {[%clk 0:02:39]} 13. Bd3 {[%clk 0:01:10]}  Nd7 {[%clk 0:02:20]} 14. O-O {[%clk 0:01:08]}  Qc5 {[%clk 0:02:13]} 15. Qe3 {[%clk 0:00:46]}  h5 {[%clk 0:02:07]} 16. Re1 {[%clk 0:00:42]}  Bh6 {[%clk 0:02:05]} 17. Nce2 {[%clk 0:00:25]}  e5 {[%clk 0:01:58]} 18. Rc3 {[%clk 0:00:18]}  exd4 {[%clk 0:01:52]} 19. Rxc5 {[%clk 0:00:16]}  dxe3 {[%clk 0:01:51]} 20. Rxh5 {[%clk 0:00:15]}  Nc5 {[%clk 0:01:47]} 21. Ng3 {[%clk 0:00:10]}  Nxd3 {[%clk 0:01:18]} 22. cxd3 {[%clk 0:00:11]}  Bg4 {[%clk 0:01:15]} 23. Rh4 {[%clk 0:00:09]}  Be6 {[%clk 0:01:15]} 24. f5 {[%clk 0:00:09]}  Bxa2 {[%clk 0:01:14]} 25. Rxe3 {[%clk 0:00:05]}  Bxe3+ {[%clk 0:01:12]} 0-1


[Site "https://www.chess.com"]

[Event "Titled Tuesday Blitz November 14 Early 2023"]
[White "parintele_chess"]
[Black "Smirnov, Timofey"]
[BlackFideId "24176427"]
[WhiteElo "2203"]
[BlackElo "2092"]
[Result "0-1"]
[Round "10"]
[TimeControl "180+1"]
[Date "2023.11.14"]
[WhiteClock "0:00:02"]
[BlackClock "0:00:01"]
[Board "144"]

1. d4 {[%clk 0:03:00]}  d5 {[%clk 0:02:59]} 2. Bf4 {[%clk 0:03:00]}  Bf5 {[%clk 0:02:59]} 3. e3 {[%clk 0:03:00]}  e6 {[%clk 0:02:59]} 4. c4 {[%clk 0:03:00]}  Nf6 {[%clk 0:02:57]} 5. Nc3 {[%clk 0:02:59]}  c6 {[%clk 0:02:57]} 6. Qb3 {[%clk 0:03:00]}  Qb6 {[%clk 0:02:39]} 7. c5 {[%clk 0:02:59]}  Qxb3 {[%clk 0:02:39]} 8. axb3 {[%clk 0:03:00]}  Be7 {[%clk 0:02:34]} 9. Nf3 {[%clk 0:02:48]}  a6 {[%clk 0:02:31]} 10. b4 {[%clk 0:02:47]}  O-O {[%clk 0:02:10]} 11. b5 {[%clk 0:02:46]}  cxb5 {[%clk 0:02:10]} 12. Bxb5 {[%clk 0:02:37]}  Nc6 {[%clk 0:02:02]} 13. Bxc6 {[%clk 0:02:35]}  bxc6 {[%clk 0:02:02]} 14. Ne5 {[%clk 0:02:30]}  Rfc8 {[%clk 0:01:57]} 15. O-O {[%clk 0:02:23]}  Ng4 {[%clk 0:01:50]} 16. Nd7 {[%clk 0:01:55]}  Rd8 {[%clk 0:01:38]} 17. Nb6 {[%clk 0:01:54]}  Ra7 {[%clk 0:01:36]} 18. Rfd1 {[%clk 0:01:23]}  Nf6 {[%clk 0:01:21]} 19. b4 {[%clk 0:01:16]}  Ne4 {[%clk 0:01:16]} 20. Nxe4 {[%clk 0:00:45]}  Bxe4 {[%clk 0:01:15]} 21. f3 {[%clk 0:00:44]}  Bc2 {[%clk 0:01:11]} 22. Rd2 {[%clk 0:00:40]}  Bb3 {[%clk 0:01:10]} 23. Rb2 {[%clk 0:00:38]}  Bc4 {[%clk 0:01:10]} 24. Nxc4 {[%clk 0:00:34]}  dxc4 {[%clk 0:01:11]} 25. Rba2 {[%clk 0:00:34]}  Rda8 {[%clk 0:01:10]} 26. Rc1 {[%clk 0:00:22]}  a5 {[%clk 0:01:10]} 27. bxa5 {[%clk 0:00:20]}  Rxa5 {[%clk 0:01:10]} 28. Rxa5 {[%clk 0:00:20]}  Rxa5 {[%clk 0:01:11]} 29. Rxc4 {[%clk 0:00:21]}  g5 {[%clk 0:00:56]} 30. Bc7 {[%clk 0:00:17]}  Ra7 {[%clk 0:00:49]} 31. Bd6 {[%clk 0:00:08]}  Bd8 {[%clk 0:00:49]} 32. Rb4 {[%clk 0:00:07]}  Ba5 {[%clk 0:00:28]} 33. Ra4 {[%clk 0:00:07]}  Rb7 {[%clk 0:00:03]} 34. Rxa5 {[%clk 0:00:07]}  Rb1+ {[%clk 0:00:03]} 35. Kf2 {[%clk 0:00:07]}  Rb2+ {[%clk 0:00:04]} 36. Kg3 {[%clk 0:00:08]}  h5 {[%clk 0:00:05]} 37. Ra8+ {[%clk 0:00:02]}  Kg7 {[%clk 0:00:04]} 38. Be5+ {[%clk 0:00:03]}  f6 {[%clk 0:00:05]} 39. Ra7+ {[%clk 0:00:02]}  Kg6 {[%clk 0:00:05]} 40. Bd6 {[%clk 0:00:02]}  f5 {[%clk 0:00:03]} 41. f4 {[%clk 0:00:02]}  h4+ {[%clk 0:00:01]} 42. Kh3 {[%clk 0:00:02]}  Kh5 {[%clk 0:00:01]} 43. g4+ {[%clk 0:00:02]}  fxg4# {[%clk 0:00:01]} 0-1


[Site "https://www.chess.com"]